[Event "Open NK Rapid 2025"]
[Site "Helmond, Netherlands"]
[Date "2025.05.03"]
[Round "5.3"]
[White "Roebers, Eline"]
[Black "Peng, Li Min"]
[Result "1-0"]
[TimeControl "15+5"]
[WhiteFideId "1058401"]
[BlackFideId "14112620"]
[WhiteElo "2390"]
[BlackElo "2510"]

1. e4 {[%clk 00:15:08]} {[%emt 00:00:02]} g6 {[%clk 00:15:07]} {[%emt
00:00:03]} 2. d4 {[%clk 00:15:12]} {[%emt 00:00:01]} Bg7 {[%clk 00:15:08]}
{[%emt 00:00:04]} 3. Nc3 {[%clk 00:15:16]} {[%emt 00:00:01]} d6 {[%clk
00:15:11]} {[%emt 00:00:02]} 4. f4 {[%clk 00:15:20]} {[%emt 00:00:01]} a6
{[%clk 00:15:09]} {[%emt 00:00:07]} 5. Nf3 {[%clk 00:15:24]} {[%emt 00:00:01]}
b5 {[%clk 00:15:12]} {[%emt 00:00:02]} 6. Bd3 {[%clk 00:15:24]} {[%emt
00:00:05]} Nd7 {[%clk 00:15:14]} {[%emt 00:00:02]} 7. a4 {[%clk 00:15:27]}
{[%emt 00:00:03]} b4 {[%clk 00:15:11]} {[%emt 00:00:08]} 8. Ne2 {[%clk
00:15:31]} {[%emt 00:00:01]} c5 {[%clk 00:13:48]} {[%emt 00:01:29]} 9. c3
{[%clk 00:15:35]} {[%emt 00:00:01]} bxc3 {[%clk 00:13:35]} {[%emt 00:00:17]} 10.
bxc3 {[%clk 00:15:38]} {[%emt 00:00:02]} Qc7 {[%clk 00:13:32]} {[%emt
00:00:07]} 11. O-O {[%clk 00:15:29]} {[%emt 00:00:14]} Bb7 {[%clk 00:09:18]}
{[%emt 00:04:19]} 12. e5 {[%clk 00:14:15]} {[%emt 00:01:19]} Nh6 {[%clk
00:09:17]} {[%emt 00:00:07]} 13. Ng5 {[%clk 00:13:33]} {[%emt 00:00:47]} e6
{[%clk 00:04:53]} {[%emt 00:04:28]} 14. Ne4 {[%clk 00:12:19]} {[%emt 00:01:19]}
dxe5 {[%clk 00:04:54]} {[%emt 00:00:04]} 15. fxe5 {[%clk 00:11:59]} {[%emt
00:00:26]} O-O {[%clk 00:04:55]} {[%emt 00:00:03]} 16. Qe1 {[%clk 00:07:20]}
{[%emt 00:04:43]} Nf5 {[%clk 00:03:16]} {[%emt 00:01:44]} 17. g4 {[%clk
00:06:26]} {[%emt 00:01:00]} cxd4 {[%clk 00:03:19]} {[%emt 00:00:01]} 18. gxf5
{[%clk 00:06:04]} {[%emt 00:00:27]} exf5 {[%clk 00:03:22]} {[%emt 00:00:02]} 19.
Nf6+ {[%clk 00:01:32]} {[%emt 00:04:37]} Nxf6 {[%clk 00:01:47]} {[%emt
00:01:41]} 20. exf6 {[%clk 00:01:35]} {[%emt 00:00:01]} Bxf6 {[%clk 00:01:51]}
{[%emt 00:00:01]} 21. Qg3 {[%clk 00:00:24]} {[%emt 00:01:17]} Qc6 {[%clk
00:00:59]} {[%emt 00:00:56]} 22. Bg5 {[%clk 00:00:17]} {[%emt 00:00:11]} Rfe8
{[%clk 00:00:22]} {[%emt 00:00:43]} 23. Nxd4 {[%clk 00:00:15]} {[%emt
00:00:07]} f4 {[%clk 00:00:08]} {[%emt 00:00:20]} 24. Nxc6 {[%clk 00:00:13]}
{[%emt 00:00:07]} fxg3 {[%clk 00:00:11]} 25. Rxf6 {[%clk 00:00:17]} {[%emt
00:00:01]} gxh2+ {[%clk 00:00:14]} {[%emt 00:00:02]} 26. Kxh2 {[%clk 00:00:21]}
Rac8 {[%clk 00:00:17]} {[%emt 00:00:03]} 27. Na5 {[%clk 00:00:19]} {[%emt
00:00:06]} Rxc3 {[%clk 00:00:20]} {[%emt 00:00:02]} 28. Bc4 {[%clk 00:00:20]}
{[%emt 00:00:05]} Re4 {[%clk 00:00:15]} {[%emt 00:00:09]} 29. Bxf7+ {[%clk
00:00:12]} {[%emt 00:00:13]} Kg7 {[%clk 00:00:19]} 30. Nxb7 {[%clk 00:00:15]}
{[%emt 00:00:02]} Re2+ {[%clk 00:00:22]} {[%emt 00:00:02]} 31. Kg1 {[%clk
00:00:16]} {[%emt 00:00:04]} Rg3+ {[%clk 00:00:26]} {[%emt 00:00:01]} 32. Kf1
{[%clk 00:00:20]} Rxg5 {[%clk 00:00:29]} {[%emt 00:00:02]} 33. Kxe2 {[%clk
00:00:23]} {[%emt 00:00:03]} Kxf6 {[%clk 00:00:33]} {[%emt 00:00:01]} 34. Bc4
{[%clk 00:00:18]} {[%emt 00:00:09]} a5 {[%emt 00:00:03]} 35. Rf1+ {[%clk
00:00:21]} Ke5 {[%clk 00:00:40]} {[%emt 00:00:02]} 36. Rb1 {[%clk 00:00:17]}
{[%emt 00:00:09]} Kd4 {[%clk 00:00:43]} {[%emt 00:00:02]} 37. Bb5 {[%clk
00:00:19]} {[%emt 00:00:04]} h5 {[%clk 00:00:42]} {[%emt 00:00:06]} 38. Nxa5
{[%clk 00:00:22]} {[%emt 00:00:01]} h4 {[%clk 00:00:46]} 39. Kf3 {[%emt
00:00:03]} Rg3+ {[%clk 00:00:49]} 40. Kf2 {[%clk 00:00:28]} {[%emt 00:00:04]}
g5 {[%clk 00:00:53]} {[%emt 00:00:01]} 41. Nb3+ {[%clk 00:00:31]} {[%emt
00:00:02]} Kc3 {[%clk 00:00:54]} {[%emt 00:00:03]} 42. Nc5 {[%clk 00:00:22]}
{[%emt 00:00:14]} Kd4 {[%clk 00:00:52]} {[%emt 00:00:08]} 43. Rc1 {[%clk
00:00:26]} {[%emt 00:00:01]} Ra3 {[%clk 00:00:55]} {[%emt 00:00:02]} 44. Ne6+
{[%clk 00:00:29]} {[%emt 00:00:02]} Ke5 {[%clk 00:00:57]} {[%emt 00:00:02]} 45.
Nxg5 {[%clk 00:00:33]} {[%emt 00:00:01]} Kf4 {[%clk 00:00:58]} {[%emt
00:00:04]} 46. Ne6+ {[%clk 00:00:33]} {[%emt 00:00:04]} Ke5 {[%clk 00:01:03]}
47. Re1+ {[%clk 00:00:37]} {[%emt 00:00:01]} Kf6 {[%clk 00:01:04]} {[%emt
00:00:04]} 48. Nf4 {[%clk 00:00:39]} {[%emt 00:00:03]} Kf5 {[%clk 00:01:08]}
{[%emt 00:00:01]} 49. Nd5 {[%clk 00:00:33]} {[%emt 00:00:11]} h3 {[%clk
00:01:09]} {[%emt 00:00:04]} 50. Bd7+ {[%clk 00:00:32]} {[%emt 00:00:06]} Kg5
{[%clk 00:01:11]} {[%emt 00:00:03]} 51. Re5+ {[%clk 00:00:25]} {[%emt
00:00:12]} Kh6 {[%clk 00:01:14]} {[%emt 00:00:02]} 52. Kg1 {[%clk 00:00:22]}
{[%emt 00:00:08]} Ra2 {[%clk 00:01:16]} {[%emt 00:00:03]} 53. Nc3 {[%clk
00:00:20]} {[%emt 00:00:08]} Rc2 {[%clk 00:01:18]} {[%emt 00:00:02]} 54. Re3
{[%clk 00:00:23]} {[%emt 00:00:02]} h2+ {[%clk 00:01:22]} {[%emt 00:00:02]} 55.
Kh1 {[%clk 00:00:27]} Kg5 {[%clk 00:01:26]} 56. a5 {[%clk 00:00:23]} {[%emt
00:00:10]} Kf4 {[%clk 00:01:03]} {[%emt 00:00:28]} 57. Rd3 {[%clk 00:00:27]}
Rc1+ {[%clk 00:01:07]} 58. Kxh2 {[%clk 00:00:30]} {[%emt 00:00:02]} Ra1 {[%clk
00:01:11]} 59. Ba4 {[%clk 00:00:30]} {[%emt 00:00:05]} 1-0

[Event "Open NK Rapid 2025"]
[Site "Helmond, Netherlands"]
[Date "2025.05.03"]
[Round "5.4"]
[White "Beerdsen, Thomas"]
[Black "Kuipers-Haast, Anne"]
[Result "1-0"]
[TimeControl "15+5"]
[WhiteFideId "1030108"]
[BlackFideId "1017292"]
[WhiteElo "2485"]
[BlackElo "2272"]

1. e4 {[%clk 00:15:07]} {[%emt 00:00:03]} c5 {[%clk 00:15:09]} {[%emt
00:00:02]} 2. Nf3 {[%clk 00:15:08]} {[%emt 00:00:04]} e6 {[%clk 00:15:12]}
{[%emt 00:00:01]} 3. d4 {[%clk 00:15:09]} {[%emt 00:00:05]} cxd4 {[%clk
00:15:16]} {[%emt 00:00:02]} 4. Nxd4 {[%clk 00:15:11]} {[%emt 00:00:02]} Nc6
{[%clk 00:15:19]} {[%emt 00:00:01]} 5. Bf4 {[%clk 00:15:03]} {[%emt 00:00:13]}
d6 {[%clk 00:14:41]} {[%emt 00:00:43]} 6. Nxc6 {[%clk 00:15:05]} {[%emt
00:00:04]} bxc6 {[%clk 00:14:44]} {[%emt 00:00:01]} 7. c4 {[%clk 00:15:05]}
{[%emt 00:00:05]} e5 {[%clk 00:14:12]} {[%emt 00:00:38]} 8. Be3 {[%clk
00:15:06]} {[%emt 00:00:03]} Nf6 {[%clk 00:13:47]} {[%emt 00:00:31]} 9. Nc3
{[%clk 00:15:09]} {[%emt 00:00:02]} Be7 {[%clk 00:13:49]} {[%emt 00:00:04]} 10.
Be2 {[%clk 00:15:11]} {[%emt 00:00:02]} O-O {[%clk 00:13:50]} {[%emt 00:00:03]}
11. O-O {[%clk 00:15:13]} {[%emt 00:00:03]} Be6 {[%clk 00:13:22]} {[%emt
00:00:34]} 12. b4 {[%clk 00:15:12]} {[%emt 00:00:06]} Nd7 {[%clk 00:12:06]}
{[%emt 00:01:21]} 13. a4 {[%clk 00:13:58]} {[%emt 00:01:19]} f5 {[%clk
00:11:46]} {[%emt 00:00:25]} 14. exf5 {[%clk 00:13:46]} {[%emt 00:00:16]} Bxf5
{[%clk 00:11:50]} {[%emt 00:00:01]} 15. Bf3 {[%clk 00:13:38]} {[%emt 00:00:13]}
Rc8 {[%clk 00:11:29]} {[%emt 00:00:27]} 16. Bxc6 {[%clk 00:13:32]} {[%emt
00:00:11]} Nb6 {[%clk 00:10:54]} {[%emt 00:00:40]} 17. a5 {[%clk 00:13:11]}
{[%emt 00:00:26]} Nd7 {[%clk 00:06:42]} {[%emt 00:04:17]} 18. Bxa7 {[%clk
00:13:03]} {[%emt 00:00:12]} Kh8 {[%clk 00:06:42]} {[%emt 00:00:06]} 19. b5
{[%clk 00:13:03]} {[%emt 00:00:04]} Qe8 {[%clk 00:06:03]} {[%emt 00:00:44]} 20.
Nd5 {[%clk 00:12:56]} {[%emt 00:00:12]} Bd8 {[%clk 00:05:56]} {[%emt 00:00:13]}
21. Be3 {[%clk 00:12:55]} {[%emt 00:00:05]} Qg6 {[%clk 00:05:56]} {[%emt
00:00:06]} 22. f3 {[%clk 00:12:23]} {[%emt 00:00:37]} Nb8 {[%clk 00:05:46]}
{[%emt 00:00:14]} 23. a6 {[%clk 00:12:13]} {[%emt 00:00:16]} Nxc6 {[%clk
00:05:34]} {[%emt 00:00:17]} 24. bxc6 {[%clk 00:12:15]} {[%emt 00:00:02]} Bd3
{[%clk 00:05:38]} {[%emt 00:00:02]} 25. Rf2 {[%clk 00:11:44]} {[%emt 00:00:36]}
Bh4 {[%clk 00:05:19]} {[%emt 00:00:24]} 26. Rd2 {[%clk 00:11:26]} {[%emt
00:00:22]} Bxc4 {[%clk 00:05:08]} {[%emt 00:00:17]} 27. Nb6 {[%clk 00:10:56]}
{[%emt 00:00:34]} Bxa6 {[%clk 00:04:08]} {[%emt 00:01:06]} 28. Rxd6 {[%clk
00:10:51]} {[%emt 00:00:10]} Qe8 {[%clk 00:03:42]} {[%emt 00:00:30]} 29. Rxa6
{[%clk 00:10:32]} {[%emt 00:00:24]} Rxc6 {[%clk 00:03:44]} {[%emt 00:00:03]} 30.
Ra8 {[%clk 00:10:32]} {[%emt 00:00:05]} Rxd6 {[%clk 00:03:27]} {[%emt
00:00:23]} 31. Qxd6 {[%clk 00:10:34]} {[%emt 00:00:02]} Be7 {[%clk 00:02:51]}
{[%emt 00:00:41]} 32. Rxe8 {[%clk 00:10:34]} {[%emt 00:00:05]} Bxd6 {[%clk
00:02:56]} 33. Rxf8+ {[%clk 00:10:37]} {[%emt 00:00:02]} Bxf8 {[%clk 00:03:00]}
34. Kf2 {[%clk 00:10:40]} {[%emt 00:00:02]} Kg8 {[%clk 00:03:01]} {[%emt
00:00:04]} 35. Ke2 {[%clk 00:10:43]} {[%emt 00:00:02]} Kf7 {[%clk 00:03:02]}
{[%emt 00:00:03]} 36. Kd3 {[%clk 00:10:47]} Ke6 {[%clk 00:03:03]} {[%emt
00:00:05]} 37. Ke4 {[%clk 00:10:51]} 1-0

[Event "Open NK Rapid 2025"]
[Site "Helmond, Netherlands"]
[Date "2025.05.03"]
[Round "5.5"]
[White "Baselmans, Luuk"]
[Black "Hilwerda, Jonas"]
[Result "0-1"]
[TimeControl "15+5"]
[WhiteFideId "1051008"]
[BlackFideId "1046713"]
[WhiteElo "2405"]
[BlackElo "2233"]

1. e4 {[%clk 00:15:05]} {[%emt 00:00:04]} c5 {[%clk 00:14:44]} {[%emt
00:00:26]} 2. Nf3 {[%clk 00:15:07]} {[%emt 00:00:03]} Nc6 {[%clk 00:14:48]}
{[%emt 00:00:02]} 3. Bb5 {[%clk 00:15:08]} {[%emt 00:00:04]} g6 {[%clk
00:14:51]} {[%emt 00:00:02]} 4. O-O {[%clk 00:15:10]} {[%emt 00:00:03]} Bg7
{[%clk 00:14:54]} {[%emt 00:00:01]} 5. Re1 {[%clk 00:15:13]} {[%emt 00:00:03]}
e5 {[%clk 00:14:56]} {[%emt 00:00:02]} 6. b4 {[%clk 00:15:14]} {[%emt
00:00:05]} Nxb4 {[%clk 00:14:58]} {[%emt 00:00:03]} 7. Bb2 {[%clk 00:15:10]}
{[%emt 00:00:08]} Qc7 {[%clk 00:14:58]} {[%emt 00:00:05]} 8. a3 {[%clk
00:14:53]} {[%emt 00:00:22]} Nc6 {[%clk 00:15:00]} {[%emt 00:00:04]} 9. Nc3
{[%clk 00:14:55]} {[%emt 00:00:03]} Nge7 {[%clk 00:15:00]} {[%emt 00:00:03]} 10.
Nd5 {[%clk 00:14:52]} {[%emt 00:00:09]} Qd8 {[%emt 00:01:13]} 11. c3 {[%clk
00:13:45]} O-O {[%clk 00:15:03]} {[%emt 00:00:05]} 12. d4 {[%clk 00:13:34]}
{[%emt 00:00:16]} d6 {[%clk 00:15:07]} {[%emt 00:00:02]} 13. Nxe7+ {[%clk
00:12:05]} {[%emt 00:01:34]} Nxe7 {[%clk 00:14:25]} {[%emt 00:00:48]} 14. h3
{[%clk 00:11:12]} {[%emt 00:00:57]} Qc7 {[%clk 00:13:52]} {[%emt 00:00:38]} 15.
a4 {[%clk 00:10:30]} {[%emt 00:00:46]} a6 {[%clk 00:12:33]} {[%emt 00:01:24]}
16. Bf1 {[%clk 00:10:22]} {[%emt 00:00:13]} b6 {[%clk 00:12:38]} {[%emt
00:00:02]} 17. Bc1 {[%clk 00:08:32]} {[%emt 00:01:54]} Bd7 {[%clk 00:12:13]}
{[%emt 00:00:30]} 18. Bg5 {[%clk 00:07:48]} {[%emt 00:00:48]} f6 {[%clk
00:11:26]} {[%emt 00:00:53]} 19. Be3 {[%clk 00:07:50]} {[%emt 00:00:03]} Be6
{[%clk 00:11:26]} {[%emt 00:00:05]} 20. Rb1 {[%clk 00:07:33]} {[%emt 00:00:22]}
Rfb8 {[%clk 00:11:29]} {[%emt 00:00:02]} 21. d5 {[%clk 00:07:27]} {[%emt
00:00:11]} Bd7 {[%clk 00:10:53]} {[%emt 00:00:42]} 22. c4 {[%clk 00:06:51]}
{[%emt 00:00:40]} f5 {[%clk 00:10:52]} {[%emt 00:00:05]} 23. Bg5 {[%clk
00:06:38]} {[%emt 00:00:19]} Be8 {[%clk 00:08:56]} {[%emt 00:02:02]} 24. Bd3
{[%clk 00:05:41]} {[%emt 00:01:01]} f4 {[%clk 00:08:30]} {[%emt 00:00:31]} 25.
Bxe7 {[%clk 00:04:58]} {[%emt 00:00:48]} Qxe7 {[%clk 00:08:33]} {[%emt
00:00:02]} 26. Re2 {[%clk 00:05:00]} {[%emt 00:00:02]} Qd7 {[%clk 00:08:26]}
{[%emt 00:00:13]} 27. Ra2 {[%clk 00:04:44]} {[%emt 00:00:21]} Bf6 {[%clk
00:08:12]} {[%emt 00:00:18]} 28. Bc2 {[%clk 00:04:38]} {[%emt 00:00:12]} Bd8
{[%clk 00:08:03]} {[%emt 00:00:13]} 29. Rab2 {[%clk 00:04:37]} {[%emt
00:00:06]} Qg7 {[%clk 00:07:39]} {[%emt 00:00:30]} 30. Bd3 {[%clk 00:04:01]}
{[%emt 00:00:41]} Rb7 {[%clk 00:07:20]} {[%emt 00:00:24]} 31. Qc2 {[%clk
00:02:57]} {[%emt 00:01:09]} Rab8 {[%clk 00:07:17]} {[%emt 00:00:07]} 32. Nh2
{[%clk 00:02:41]} {[%emt 00:00:21]} h5 {[%clk 00:07:10]} {[%emt 00:00:12]} 33.
Be2 {[%clk 00:02:42]} {[%emt 00:00:04]} Kh7 {[%clk 00:07:05]} {[%emt 00:00:11]}
34. Qd1 {[%clk 00:02:35]} {[%emt 00:00:12]} Kh6 {[%clk 00:07:05]} {[%emt
00:00:05]} 35. Nf1 {[%clk 00:02:01]} {[%emt 00:00:38]} Qf6 {[%clk 00:05:52]}
{[%emt 00:01:18]} 36. Nh2 {[%clk 00:01:59]} {[%emt 00:00:07]} Qe7 {[%clk
00:05:21]} {[%emt 00:00:36]} 37. Nf3 {[%clk 00:01:42]} {[%emt 00:00:21]} Bd7
{[%clk 00:04:50]} {[%emt 00:00:37]} 38. Nh2 {[%clk 00:01:41]} {[%emt 00:00:06]}
Qe8 {[%clk 00:04:43]} {[%emt 00:00:12]} 39. Ra1 {[%clk 00:01:38]} {[%emt
00:00:08]} b5 {[%clk 00:04:37]} {[%emt 00:00:11]} 40. axb5 {[%clk 00:01:19]}
{[%emt 00:00:23]} axb5 {[%clk 00:04:41]} {[%emt 00:00:01]} 41. cxb5 {[%clk
00:00:51]} {[%emt 00:00:34]} Bxb5 {[%clk 00:03:29]} {[%emt 00:01:17]} 42. Rab1
{[%clk 00:00:13]} {[%emt 00:00:43]} Bxe2 {[%clk 00:03:28]} {[%emt 00:00:05]} 43.
Qxe2 {[%clk 00:00:09]} {[%emt 00:00:10]} Rb4 {[%clk 00:02:25]} {[%emt
00:01:08]} 44. Rxb4 {[%clk 00:00:00]} {[%emt 00:00:11]} 0-1

[Event "Open NK Rapid 2025"]
[Site "Helmond, Netherlands"]
[Date "2025.05.03"]
[Round "5.6"]
[White "Uddin, Ahnaf Tajwar"]
[Black "Cernov, Vadim"]
[Result "0-1"]
[TimeControl "15+5"]
[WhiteFideId "1050842"]
[BlackFideId "1210629"]
[WhiteElo "2081"]
[BlackElo "2320"]

1. Nf3 {[%clk 00:15:07]} {[%emt 00:00:03]} Nf6 {[%clk 00:15:08]} {[%emt
00:00:02]} 2. b3 {[%clk 00:15:11]} g6 {[%clk 00:15:10]} {[%emt 00:00:04]} 3.
Bb2 {[%clk 00:15:14]} {[%emt 00:00:01]} Bg7 {[%clk 00:15:14]} 4. e3 {[%clk
00:15:17]} {[%emt 00:00:02]} O-O {[%clk 00:15:15]} {[%emt 00:00:04]} 5. Be2
{[%clk 00:15:20]} {[%emt 00:00:01]} c5 {[%clk 00:15:17]} {[%emt 00:00:04]} 6.
O-O {[%clk 00:15:23]} {[%emt 00:00:02]} Nc6 {[%clk 00:15:21]} 7. Bb5 {[%clk
00:15:25]} {[%emt 00:00:03]} Qc7 {[%clk 00:15:07]} {[%emt 00:00:20]} 8. Bxc6
{[%clk 00:15:26]} {[%emt 00:00:04]} Qxc6 {[%clk 00:15:10]} 9. d3 {[%clk
00:15:29]} {[%emt 00:00:02]} d6 {[%clk 00:15:06]} {[%emt 00:00:09]} 10. Nbd2
{[%clk 00:15:32]} {[%emt 00:00:02]} b5 {[%clk 00:15:03]} {[%emt 00:00:08]} 11.
a4 {[%clk 00:15:34]} {[%emt 00:00:03]} a6 {[%clk 00:15:07]} {[%emt 00:00:01]}
12. axb5 {[%clk 00:15:31]} {[%emt 00:00:08]} axb5 {[%clk 00:15:11]} {[%emt
00:00:01]} 13. Rxa8 {[%clk 00:15:34]} {[%emt 00:00:02]} Qxa8 {[%clk 00:15:15]}
{[%emt 00:00:01]} 14. Qa1 {[%clk 00:15:37]} {[%emt 00:00:01]} Bb7 {[%clk
00:15:14]} {[%emt 00:00:06]} 15. Qxa8 {[%clk 00:15:36]} {[%emt 00:00:07]} Rxa8
{[%clk 00:15:17]} {[%emt 00:00:01]} 16. Ra1 {[%clk 00:15:40]} {[%emt 00:00:01]}
Kf8 {[%clk 00:15:07]} {[%emt 00:00:15]} 17. Rxa8+ {[%clk 00:15:42]} {[%emt
00:00:03]} Bxa8 {[%clk 00:15:12]} {[%emt 00:00:01]} 18. Kf1 {[%clk 00:15:26]}
{[%emt 00:00:21]} Ke8 {[%clk 00:15:13]} {[%emt 00:00:03]} 19. Ke2 {[%clk
00:15:27]} {[%emt 00:00:04]} h6 {[%clk 00:15:05]} {[%emt 00:00:13]} 20. h3
{[%clk 00:14:35]} {[%emt 00:00:57]} Kd7 {[%clk 00:14:58]} {[%emt 00:00:12]} 21.
c4 {[%clk 00:12:00]} {[%emt 00:02:41]} b4 {[%clk 00:13:23]} {[%emt 00:01:40]}
22. Bxf6 {[%clk 00:11:38]} {[%emt 00:00:26]} Bxf6 {[%clk 00:13:17]} {[%emt
00:00:11]} 23. e4 {[%clk 00:11:34]} {[%emt 00:00:09]} e6 {[%clk 00:12:55]}
{[%emt 00:00:27]} 24. Ne1 {[%clk 00:10:18]} {[%emt 00:01:21]} Bc3 {[%clk
00:12:39]} {[%emt 00:00:21]} 25. Nb1 {[%clk 00:10:06]} {[%emt 00:00:17]} Bb2
{[%clk 00:12:17]} {[%emt 00:00:27]} 26. Nc2 {[%clk 00:09:46]} {[%emt 00:00:25]}
f5 {[%clk 00:12:09]} {[%emt 00:00:13]} 27. f3 {[%clk 00:09:16]} {[%emt
00:00:36]} Ke7 {[%clk 00:12:05]} {[%emt 00:00:09]} 28. Nd2 {[%clk 00:08:15]}
{[%emt 00:01:05]} Kf6 {[%clk 00:11:43]} {[%emt 00:00:26]} 29. Nf1 {[%clk
00:07:17]} {[%emt 00:01:04]} Bb7 {[%clk 00:11:00]} {[%emt 00:00:48]} 30. Nfe3
{[%clk 00:07:09]} {[%emt 00:00:13]} Kg5 {[%clk 00:10:40]} {[%emt 00:00:25]} 31.
g3 {[%clk 00:06:08]} {[%emt 00:01:06]} Kf6 {[%clk 00:08:20]} {[%emt 00:02:25]}
32. Kd2 {[%clk 00:05:42]} {[%emt 00:00:31]} Ke7 {[%clk 00:07:38]} {[%emt
00:00:47]} 33. Ke2 {[%clk 00:05:33]} {[%emt 00:00:14]} Be5 {[%clk 00:07:25]}
{[%emt 00:00:18]} 34. g4 {[%clk 00:05:16]} {[%emt 00:00:22]} fxe4 {[%clk
00:06:20]} {[%emt 00:01:10]} 35. dxe4 {[%clk 00:04:49]} {[%emt 00:00:32]} Kf6
{[%clk 00:06:09]} {[%emt 00:00:16]} 36. Ne1 {[%clk 00:04:48]} {[%emt 00:00:07]}
Bd4 {[%clk 00:05:59]} {[%emt 00:00:14]} 37. N1c2 {[%clk 00:04:20]} {[%emt
00:00:34]} Bc3 {[%clk 00:06:01]} {[%emt 00:00:02]} 38. Kd3 {[%clk 00:04:14]}
{[%emt 00:00:12]} h5 {[%clk 00:05:27]} {[%emt 00:00:39]} 39. Nd1 {[%clk
00:03:33]} {[%emt 00:00:46]} Be5 {[%clk 00:05:27]} {[%emt 00:00:04]} 40. Nce3
{[%clk 00:03:19]} {[%emt 00:00:20]} Kg5 {[%clk 00:05:11]} {[%emt 00:00:21]} 41.
Ng2 {[%clk 00:03:23]} {[%emt 00:00:01]} hxg4 {[%clk 00:05:05]} {[%emt
00:00:11]} 42. hxg4 {[%clk 00:03:26]} {[%emt 00:00:03]} d5 {[%clk 00:04:10]}
{[%emt 00:00:59]} 43. Nf2 {[%clk 00:03:29]} {[%emt 00:00:01]} Bd4 {[%clk
00:03:46]} {[%emt 00:00:29]} 44. Nh3+ {[%clk 00:03:28]} {[%emt 00:00:06]} Kf6
{[%clk 00:03:50]} {[%emt 00:00:02]} 45. g5+ {[%clk 00:02:34]} {[%emt 00:01:00]}
Kf7 {[%clk 00:03:36]} {[%emt 00:00:18]} 46. Nhf4 {[%clk 00:01:40]} {[%emt
00:00:59]} dxc4+ {[%clk 00:03:34]} {[%emt 00:00:07]} 47. bxc4 {[%clk 00:01:43]}
b3 {[%clk 00:02:30]} {[%emt 00:01:10]} 48. Ne2 {[%clk 00:01:47]} {[%emt
00:00:01]} Ba6 {[%clk 00:02:23]} {[%emt 00:00:13]} 49. Nxd4 {[%clk 00:01:19]}
{[%emt 00:00:32]} cxd4 {[%clk 00:02:17]} {[%emt 00:00:11]} 50. Ne1 {[%clk
00:01:15]} {[%emt 00:00:09]} Bxc4+ {[%clk 00:02:09]} {[%emt 00:00:13]} 51. Kd2
{[%clk 00:01:18]} {[%emt 00:00:03]} b2 {[%clk 00:01:42]} {[%emt 00:00:32]} 52.
Kc2 {[%clk 00:01:14]} {[%emt 00:00:08]} d3+ {[%clk 00:01:43]} {[%emt 00:00:04]}
53. Nxd3 {[%clk 00:01:13]} {[%emt 00:00:06]} Bxd3+ {[%clk 00:01:45]} {[%emt
00:00:03]} 54. Kxb2 {[%clk 00:01:17]} e5 {[%clk 00:01:42]} {[%emt 00:00:08]}
0-1